bitfinex/quotes_BTCUSD_20240810
["timestamp","ask_amount","ask_price","bid_price","bid_amount"]
[1723307735840,0.17638995,60784.0,60783.0,0.012]
[1723307735996,0.17638995,60784.0,60783.0,0.013]
[1723307736368,0.17638995,60784.0,60783.0,0.011]
[1723307736777,0.17638995,60784.0,60783.0,0.013]
[1723307737066,0.17638995,60784.0,60783.0,0.003]
[1723307737273,0.17638995,60784.0,60783.0,0.013]
[1723307737274,0.17634279,60784.0,60783.0,0.013]
[1723307737724,0.14755066,60784.0,60783.0,0.013]
[1723307737875,0.17635927,60784.0,60783.0,0.013]
[1723307739053,0.17634196,60784.0,60783.0,0.013]
[1723307739680,0.17616284,60784.0,60783.0,0.013]
[1723307743372,0.17629585,60784.0,60783.0,0.013]
[1723307744847,0.17627251,60784.0,60783.0,0.013]
[1723307746733,0.17627251,60784.0,60783.0,0.59811192]
[1723307746734,0.00465066,60784.0,60783.0,0.59811192]
[1723307746940,0.0335381,60784.0,60783.0,0.89928921]
[1723307747102,0.000832,60786.0,60785.0,0.266771]
[1723307747306,0.000832,60786.0,60785.0,0.48212929]
[1723307747510,0.02971508,60786.0,60785.0,0.97497221]
[1723307747712,0.02971508,60786.0,60785.0,0.91371392]
[1723307747713,0.000832,60786.0,60785.0,0.91371392]
[1723307747878,0.000832,60786.0,60785.0,0.81044228]
[1723307748081,0.000832,60786.0,60785.0,0.64592828]
[1723307748082,0.02971347,60786.0,60785.0,0.64592828]
[1723307748502,0.03071347,60786.0,60785.0,0.64592828]
[1723307748698,0.03071347,60786.0,60785.0,0.64592991]
[1723307749334,0.03070401,60786.0,60785.0,0.64592991]
[1723307749671,0.03070401,60786.0,60785.0,0.48141591]
[1723307749981,0.03070401,60786.0,60785.0,0.64592991]
[1723307750221,0.03070401,60786.0,60785.0,0.48141591]
[1723307750436,0.03070401,60786.0,60785.0,0.64592991]
[1723307750779,0.03070401,60786.0,60785.0,0.81369992]
[1723307750780,0.001832,60786.0,60785.0,0.81369992]
[1723307750984,0.001832,60786.0,60785.0,1.02426286]
[1723307751194,0.001832,60786.0,60785.0,1.04890357]
[1723307751367,0.001832,60786.0,60785.0,0.95033297]
[1723307751566,0.001832,60786.0,60785.0,1.21341757]
[1723307752258,0.001832,60786.0,60785.0,1.23806022]
[1723307752400,0.001832,60786.0,60785.0,1.04881505]
[1723307752824,0.001832,60786.0,60785.0,0.91218998]
[1723307753005,0.001832,60786.0,60785.0,1.04881987]
[1723307753423,0.001832,60786.0,60785.0,1.02417343]
[1723307753832,0.000832,60786.0,60785.0,1.02417343]
[1723307754085,0.000832,60786.0,60785.0,0.95032679]
[1723307754290,0.002832,60786.0,60785.0,1.03917512]
[1723307755030,0.002832,60786.0,60785.0,1.03915791]
[1723307755974,0.002832,60786.0,60785.0,0.90253255]
[1723307756170,0.002832,60786.0,60785.0,1.03915881]
[1723307756611,0.002832,60786.0,60785.0,0.96532645]
[1723307758485,0.002832,60786.0,60785.0,1.01452662]
[1723307759298,0.002832,60786.0,60785.0,1.0242588]
[1723307760063,0.002832,60786.0,60785.0,0.88763227]
[1723307760394,0.002832,60786.0,60785.0,0.88762671]
[1723307761932,0.002832,60786.0,60785.0,0.87789453]
[1723307762314,0.002832,60786.0,60785.0,0.87788624]
[1723307762532,0.002832,60786.0,60785.0,0.82869992]
[1723307762781,0.002832,60786.0,60785.0,1.014515]
[1723307762966,0.002832,60786.0,60785.0,0.87788864]
[1723307763407,0.002832,60786.0,60785.0,1.01451452]
[1723307763942,0.002832,60786.0,60785.0,1.01451033]
[1723307764466,0.002832,60786.0,60785.0,0.96532579]
[1723307765000,0.002832,60786.0,60785.0,0.82869992]
[1723307765318,0.002832,60786.0,60785.0,0.96532579]
[1723307765726,0.002832,60786.0,60785.0,0.82869992]
[1723307765901,0.002832,60786.0,60785.0,0.96532579]
[1723307766245,0.002832,60786.0,60785.0,0.96532562]
[1723307766869,0.001832,60786.0,60785.0,0.95732562]
[1723307767179,0.002832,60786.0,60785.0,0.97132562]
[1723307767381,0.001832,60786.0,60785.0,0.82769992]
[1723307767562,0.001832,60786.0,60785.0,0.89982562]
[1723307767802,0.001832,60786.0,60785.0,0.91382562]
[1723307769931,0.001832,60786.0,60785.0,0.91382563]
[1723307772085,0.001832,60786.0,60785.0,1.07833963]
[1723307772322,0.001832,60786.0,60785.0,1.14223963]
[1723307772574,0.001832,60786.0,60785.0,1.19544173]
[1723307772802,0.001832,60786.0,60785.0,1.14628176]
[1723307773027,0.001832,60786.0,60785.0,1.08238176]
[1723307773259,0.001832,60786.0,60785.0,0.94575605]
[1723307773465,0.001832,60786.0,60785.0,1.08238016]
[1723307773823,0.001832,60786.0,60785.0,1.08237999]
[1723307774147,0.001832,60786.0,60785.0,1.07833786]
[1723307774548,0.001832,60786.0,60785.0,1.12749586]
[1723307774741,0.001832,60786.0,60785.0,1.10749586]
[1723307775121,0.001832,60786.0,60785.0,1.05209586]
[1723307775332,0.001832,60786.0,60785.0,1.05209997]
[1723307775753,0.001832,60786.0,60785.0,1.00293786]
[1723307775959,0.001832,60786.0,60785.0,1.07668102]
[1723307776381,0.001832,60786.0,60785.0,1.00293786]
[1723307776736,0.001832,60786.0,60785.0,1.07668102]
[1723307776867,0.001832,60786.0,60785.0,1.07667585]
[1723307777287,0.001832,60786.0,60785.0,1.00293269]
[1723307777479,0.001832,60786.0,60785.0,1.07667152]
[1723307778214,0.001832,60786.0,60785.0,1.00293269]
[1723307778416,0.001832,60786.0,60785.0,1.24846349]
[1723307778663,0.001832,60786.0,60785.0,1.00293269]
[1723307779204,0.001832,60786.0,60785.0,0.92423269]
[1723307779403,0.001832,60786.0,60785.0,1.07667152]
[1723307779808,0.001832,60786.0,60785.0,1.24846349]
[1723307780898,0.001832,60786.0,60785.0,1.17472466]
[1723307781096,0.001832,60786.0,60785.0,1.24846349]
[1723307781742,0.001832,60786.0,60785.0,1.05210841]
[1723307781944,0.001832,60786.0,60785.0,1.17417514]
[1723307782955,0.001832,60786.0,60785.0,1.23807514]
[1723307783472,0.001832,60786.0,60785.0,1.31181397]
[1723307783876,0.001832,60786.0,60785.0,1.31167969]
[1723307784476,0.001832,60786.0,60785.0,1.31167747]
[1723307785662,0.001832,60786.0,60785.0,1.31147419]
[1723307786604,0.001832,60786.0,60785.0,1.23773536]
[1723307786763,0.001832,60786.0,60785.0,1.17383536]
[1723307787217,0.001832,60786.0,60785.0,1.2721538]
[1723307787420,0.001832,60786.0,60785.0,0.96463236]
[1723307787580,0.001832,60786.0,60785.0,1.27201761]
[1723307789213,0.001832,60786.0,60785.0,1.17369917]
[1723307789392,0.001832,60786.0,60785.0,1.29659722]
[1723307789737,0.001832,60786.0,60785.0,1.36490696]
[1723307790137,0.001832,60786.0,60785.0,1.36490687]
[1723307790365,0.001832,60786.0,60785.0,1.41278085]
[1723307791007,0.001832,60786.0,60785.0,1.17369917]
[1723307791136,0.001832,60786.0,60785.0,1.41277351]
[1723307792740,0.001832,60786.0,60785.0,1.56025117]
[1723307793206,0.001832,60786.0,60785.0,1.56056839]
[1723307793695,0.001832,60786.0,60785.0,1.41277351]
[1723307794650,0.001832,60786.0,60785.0,1.48667957]
[1723307794867,0.001832,60786.0,60785.0,1.72575295]
[1723307795277,0.001832,60786.0,60785.0,1.72575231]
[1723307796422,0.001832,60786.0,60785.0,1.57798691]
[1723307798193,0.001832,60786.0,60785.0,1.4072205]
[1723307798392,0.001832,60786.0,60785.0,1.57798634]
[1723307799440,0.001832,60786.0,60785.0,1.57998634]
[1723307801566,0.001832,60786.0,60785.0,1.03391392]
[1723307801784,0.001832,60786.0,60785.0,1.58015213]
[1723307802529,0.001832,60786.0,60785.0,1.75466613]
[1723307802732,0.001832,60786.0,60785.0,1.58292096]
[1723307803168,0.001832,60786.0,60785.0,1.74743496]
[1723307805301,0.001832,60786.0,60785.0,1.74742957]
[1723307805509,0.001832,60786.0,60785.0,1.33661557]
[1723307805713,0.144132,60786.0,60785.0,1.33662243]
[1723307805910,0.144132,60786.0,60785.0,1.41532367]
[1723307806128,0.144132,60786.0,60785.0,1.56305919]
[1723307806257,0.144132,60786.0,60785.0,1.25311983]
[1723307806465,0.144132,60786.0,60785.0,1.56290766]
[1723307806640,0.144132,60786.0,60785.0,1.56292121]
[1723307808806,0.144132,60786.0,60785.0,1.56285431]
[1723307809214,0.144132,60786.0,60785.0,1.48415672]
[1723307809417,0.144132,60786.0,60785.0,1.39208984]
[1723307809628,0.144132,60786.0,60785.0,1.16565191]
[1723307809844,0.144132,60786.0,60785.0,1.24435191]
[1723307810047,0.144132,60786.0,60785.0,1.39208984]
[1723307810686,0.144132,60786.0,60785.0,1.24435191]
[1723307811317,0.144132,60786.0,60785.0,1.39208984]
[1723307812192,0.144132,60786.0,60785.0,1.39209035]
[1723307813129,0.144132,60786.0,60785.0,1.01405185]
[1723307813325,0.144132,60786.0,60785.0,1.39157908]
[1723307813672,0.144132,60786.0,60785.0,1.56234686]
[1723307815857,0.144132,60786.0,60785.0,1.32489762]
[1723307816059,0.144132,60786.0,60785.0,1.56397251]
[1723307816661,0.144132,60786.0,60785.0,1.01405185]
[1723307816891,0.144132,60786.0,60785.0,1.56401705]
[1723307817422,0.144132,60786.0,60785.0,1.39324927]
[1723307817630,0.144132,60786.0,60785.0,1.56401705]
[1723307819579,0.144132,60786.0,60785.0,1.56386896]
[1723307819952,0.001832,60786.0,60785.0,1.54386896]
[1723307820152,0.001832,60786.0,60785.0,1.39613103]
[1723307821876,0.001832,60786.0,60785.0,0.93462101]
[1723307822053,0.001832,60786.0,60785.0,1.41629732]
[1723307822252,0.141432,60786.0,60785.0,0.84405532]
[1723307822449,0.141432,60786.0,60785.0,0.50938611]
[1723307822664,0.141432,60786.0,60785.0,0.96159485]
[1723307822866,0.14586069,60786.0,60785.0,0.96159485]
[1723307823146,0.141432,60786.0,60785.0,0.96159485]
[1723307823500,0.14586069,60786.0,60785.0,0.96159485]
[1723307823710,0.141432,60786.0,60785.0,0.96159485]
[1723307824307,0.141432,60786.0,60785.0,0.70179992]
[1723307824508,0.141432,60786.0,60785.0,0.83842847]
[1723307824714,0.141432,60786.0,60785.0,0.93693589]
[1723307825518,0.141432,60786.0,60785.0,0.80030734]
[1723307825774,0.141432,60786.0,60785.0,0.93693785]
[1723307825977,0.141432,60786.0,60785.0,0.80030734]
[1723307826154,0.141432,60786.0,60785.0,0.93690945]
[1723307826707,0.141432,60786.0,60785.0,0.59521644]
[1723307826913,0.141432,60786.0,60785.0,0.72315847]
[1723307827114,0.14586601,60786.0,60785.0,0.72315847]
[1723307827314,0.141432,60786.0,60785.0,0.67391644]
[1723307827448,0.141432,60786.0,60785.0,0.65991644]
[1723307828527,0.140432,60786.0,60785.0,0.56721644]
[1723307828752,0.140432,60786.0,60785.0,0.65691644]
[1723307828952,0.140432,60786.0,60785.0,0.53128592]
[1723307829152,0.140432,60786.0,60785.0,0.65692387]
[1723307829428,0.140432,60786.0,60785.0,0.65992387]
[1723307829722,0.140432,60786.0,60785.0,0.67192387]
[1723307830413,0.140432,60786.0,60785.0,0.65992387]
[1723307831704,0.140432,60786.0,60785.0,0.67392387]
[1723307833347,0.140432,60786.0,60785.0,0.50940987]
[1723307833746,0.1448627,60786.0,60785.0,0.50940987]
[1723307835841,0.1448627,60786.0,60785.0,0.37277192]
[1723307836045,0.1448627,60786.0,60785.0,0.50941236]
[1723307836497,0.1448627,60786.0,60785.0,0.50941237]
[1723307836652,0.1743123,60786.0,60785.0,0.038]
[1723307837178,0.1743123,60786.0,60785.0,0.028]
[1723307837581,0.1448627,60786.0,60785.0,0.028]
[1723307837905,0.17438459,60786.0,60785.0,0.014]
[1723307838204,0.17438459,60786.0,60785.0,0.024]
[1723307838699,0.11328459,60786.0,60784.0,0.0009141]
[1723307838902,0.17202189,60785.0,60784.0,0.0009141]
[1723307839288,0.17645275,60785.0,60784.0,0.0009141]
[1723307839501,0.14693086,60785.0,60784.0,0.0009141]
[1723307840055,0.14675374,60785.0,60784.0,0.0009141]
[1723307840389,0.14675374,60785.0,60784.0,0.0049141]
[1723307842631,0.14675374,60785.0,60784.0,0.0099141]
[1723307844367,0.14675374,60785.0,60784.0,0.0299141]
[1723307844545,0.14675374,60785.0,60784.0,0.0099141]
[1723307844702,0.14675374,60785.0,60784.0,0.27598702]
[1723307844912,0.14675374,60785.0,60784.0,0.44050302]
[1723307845938,0.14675374,60785.0,60784.0,0.27598702]
[1723307846433,0.14675374,60785.0,60784.0,0.41262945]
[1723307846658,0.14675374,60785.0,60784.0,0.41262846]
[1723307846873,0.14675374,60785.0,60784.0,0.41262973]
[1723307847090,0.14675374,60785.0,60784.0,0.27598702]
[1723307847268,0.14675374,60785.0,60784.0,0.60501902]
[1723307847467,0.14675374,60785.0,60784.0,0.74166154]
[1723307847709,0.14232288,60785.0,60784.0,0.74166154]
[1723307847887,0.14232288,60785.0,60784.0,0.57714554]
[1723307848388,0.14674934,60785.0,60784.0,0.57714554]
[1723307850159,0.14674934,60785.0,60784.0,0.44050302]
[1723307850404,0.14674934,60785.0,60784.0,0.57714284]
[1723307851810,0.14674934,60785.0,60784.0,0.55714284]
[1723307852009,0.14232288,60785.0,60784.0,0.55714284]
[1723307852212,0.14674934,60785.0,60784.0,0.57714284]
[1723307853917,0.14674934,60785.0,60784.0,0.57714318]
[1723307855227,0.17596119,60785.0,60784.0,0.57714318]
[1723307857242,0.17596119,60785.0,60784.0,0.44050302]
[1723307857243,0.14674934,60785.0,60784.0,0.44050302]
[1723307857451,0.17603149,60785.0,60784.0,0.57714412]
[1723307858398,0.17686249,60785.0,60784.0,0.57714412]
[1723307858961,0.17686885,60785.0,60784.0,0.1665552]
[1723307859174,0.17686885,60785.0,60784.0,0.1465552]
[1723307859423,0.17686885,60785.0,60784.0,0.1665552]
[1723307861199,0.17686885,60785.0,60784.0,0.2488132]
[1723307862153,0.17686796,60785.0,60784.0,0.2488132]
[1723307863680,0.17686796,60785.0,60784.0,0.1665552]
[1723307867897,0.17686796,60785.0,60784.0,0.0299141]
[1723307868071,0.17685991,60785.0,60784.0,0.16655574]
[1723307868270,0.17685991,60785.0,60784.0,0.2157948]
[1723307868520,0.1768663,60785.0,60784.0,0.29805279]
[1723307869860,0.1768663,60785.0,60784.0,0.29805253]
[1723307870065,0.1768663,60785.0,60784.0,0.21579453]
[1723307871448,0.1768663,60785.0,60784.0,0.14655547]
[1723307873134,0.1768663,60785.0,60784.0,0.14155547]
[1723307874353,0.1768663,60785.0,60784.0,0.19083616]
[1723307874601,0.1768663,60785.0,60784.0,0.19483616]
[1723307874748,0.1768663,60785.0,60784.0,0.14155547]
[1723307874950,0.1768663,60785.0,60784.0,0.13755547]
[1723307875160,0.1768663,60785.0,60784.0,0.14355547]
[1723307875447,0.1768663,60785.0,60784.0,0.19983616]
[1723307875650,0.1768663,60785.0,60784.0,0.15055547]
[1723307875878,0.1768663,60785.0,60784.0,0.19983616]
[1723307876255,0.1768663,60785.0,60784.0,0.15055547]
[1723307876457,0.1768663,60785.0,60784.0,0.23281347]
[1723307877271,0.1768663,60785.0,60784.0,0.28209961]
[1723307877477,0.1768663,60785.0,60784.0,0.23281347]
[1723307877672,0.1768663,60785.0,60784.0,0.28209961]
[1723307878677,0.1768663,60785.0,60784.0,0.23281347]
[1723307879272,0.14758034,60785.0,60784.0,0.0961721]
[1723307879486,0.14758034,60785.0,60784.0,0.28210424]
[1723307879487,0.17687838,60785.0,60784.0,0.28210424]
[1723307880609,0.17684458,60785.0,60784.0,0.28210424]
[1723307881843,0.14758034,60785.0,60784.0,0.14545824]
[1723307882057,0.17684323,60785.0,60784.0,0.28210426]
[1723307882625,0.17684323,60785.0,60784.0,0.28211199]
[1723307883991,0.17684323,60785.0,60784.0,0.19985399]
[1723307884298,0.17684323,60785.0,60784.0,0.19985811]
[1723307884450,0.14758034,60785.0,60784.0,0.06321209]
[1723307884650,0.17684446,60785.0,60784.0,0.1998582]
[1723307888352,0.14758034,60785.0,60784.0,0.2198582]
[1723307888633,0.17681563,60785.0,60784.0,0.17056021]
[1723307888844,0.17681563,60785.0,60784.0,0.16056021]
[1723307888991,0.1768969,60785.0,60784.0,0.17056098]
[1723307889187,0.1768969,60785.0,60784.0,0.16056098]
[1723307889593,0.2591539,60785.0,60784.0,0.16056098]
[1723307890001,0.25898779,60785.0,60784.0,0.16056098]
[1723307890402,0.25914454,60785.0,60784.0,0.16056151]
[1723307891915,0.22967123,60785.0,60784.0,0.16056242]
[1723307892117,0.17691875,60785.0,60784.0,0.16056242]
[1723307893268,0.25917575,60785.0,60784.0,0.16056242]
[1723307895474,0.42368975,60785.0,60784.0,0.16056477]
[1723307897613,0.42368975,60785.0,60784.0,0.0139141]
[1723307898964,0.42364949,60785.0,60784.0,0.0139141]
[1723307899201,0.42364949,60785.0,60784.0,0.0239141]
[1723307899390,0.39418523,60785.0,60784.0,0.0239141]
[1723307899600,0.42364919,60785.0,60784.0,0.0139141]
[1723307900140,0.25913519,60785.0,60784.0,0.0139141]
[1723307900791,0.25911676,60785.0,60784.0,0.0139141]
[1723307902701,0.25910981,60785.0,60784.0,0.0139141]
[1723307906093,0.22967123,60785.0,60784.0,0.0139141]
[1723307906244,0.25913471,60785.0,60784.0,0.0139141]
[1723307908026,0.25913471,60785.0,60784.0,0.0239141]
[1723307909766,0.22967123,60785.0,60784.0,0.1605632]
[1723307909914,0.25919097,60785.0,60784.0,0.1505632]
[1723307910126,0.25919097,60785.0,60784.0,0.1605632]
[1723307911828,0.25918869,60785.0,60784.0,0.1605632]
[1723307915828,0.25918869,60785.0,60784.0,0.0139141]
[1723307916015,0.25918869,60785.0,60784.0,0.0239141]
[1723307916413,0.03477492,60785.0,60784.0,0.0961721]
[1723307916734,0.03477492,60785.0,60784.0,0.31522325]
[1723307917511,0.03477492,60785.0,60784.0,0.23296525]
[1723307918968,0.03477492,60785.0,60784.0,0.23282325]
[1723307919130,0.03477492,60785.0,60784.0,0.25282325]
[1723307919710,0.03477492,60785.0,60784.0,0.23282325]
[1723307920304,0.03477492,60785.0,60784.0,0.15056525]
[1723307920505,0.03477492,60785.0,60784.0,0.0139141]
[1723307920506,0.00525746,60785.0,60784.0,0.0139141]
[1723307920707,0.03464494,60785.0,60784.0,0.17056254]
[1723307921204,0.03464494,60785.0,60784.0,0.0339141]
[1723307921451,0.03464494,60785.0,60784.0,0.17056254]
[1723307921634,0.03464494,60785.0,60784.0,0.15056254]
[1723307922178,0.03464494,60785.0,60784.0,0.17056254]
[1723307923615,0.03464494,60785.0,60784.0,0.15056254]
[1723307924033,0.03464494,60785.0,60784.0,0.17056254]
[1723307924438,0.03464494,60785.0,60784.0,0.15056254]
[1723307924439,0.03467293,60785.0,60784.0,0.15056254]
[1723307925437,0.03466696,60785.0,60784.0,0.23282054]
[1723307926557,0.03466696,60785.0,60784.0,0.2328202]
[1723307926778,0.03466696,60785.0,60784.0,0.1505622]
[1723307926997,0.03466696,60785.0,60784.0,0.2328202]
[1723307927541,0.03466696,60785.0,60784.0,0.1505622]
[1723307930471,0.03466696,60785.0,60784.0,0.1705622]
[1723307930832,0.03466696,60785.0,60784.0,0.1505622]
[1723307931814,0.03466696,60785.0,60784.0,0.15056254]
[1723307932226,0.00525746,60785.0,60784.0,0.0139141]
[1723307932541,0.03466886,60785.0,60784.0,0.15056221]
[1723307932816,0.03466886,60785.0,60784.0,0.58115113]
[1723307932988,0.03457783,60785.0,60784.0,0.95629837]
[1723307933144,0.000831,60785.0,60784.0,0.79178237]
[1723307934330,0.000831,60785.0,60784.0,0.30675145]
[1723307934531,0.000831,60785.0,60784.0,0.25282021]
[1723307934532,0.10768419,60785.0,60784.0,0.25282021]
[1723307934945,0.11247148,60785.0,60784.0,0.25282021]
[1723307935455,0.08304913,60785.0,60784.0,0.1161721]
[1723307935658,0.11247154,60785.0,60784.0,0.25281973]
[1723307936931,0.17447154,60785.0,60784.0,0.15056173]
[1723307937140,0.17447154,60785.0,60784.0,0.17056173]
[1723307938938,0.17447154,60785.0,60784.0,0.16056173]
[1723307941622,0.14504913,60785.0,60784.0,0.16056234]
[1723307941837,0.17442105,60785.0,60784.0,0.16056234]
[1723307942035,0.14504913,60785.0,60784.0,0.0239141]
[1723307942346,0.14504913,60785.0,60784.0,0.16056237]
[1723307942347,0.17446058,60785.0,60784.0,0.16056237]
[1723307943445,0.17445693,60785.0,60784.0,0.16056237]
[1723307943606,0.17445693,60785.0,60784.0,0.24282037]
[1723307944192,0.14504913,60785.0,60784.0,0.1061721]
[1723307944397,0.11239196,60785.0,60784.0,0.16056235]
[1723307944641,0.11239197,60785.0,60784.0,0.0239141]
[1723307944799,0.11239197,60785.0,60784.0,0.16056219]
[1723307945419,0.08304913,60785.0,60784.0,0.0239141]
[1723307945554,0.11238876,60785.0,60784.0,0.24282018]
[1723307945755,0.11238876,60785.0,60784.0,0.23282018]
[1723307945951,0.11238876,60785.0,60784.0,0.15056218]
[1723307945952,0.82888776,60785.0,60784.0,0.15056218]
[1723307946264,1.54884905,60785.0,60784.0,0.0139141]
[1723307946465,1.54884905,60785.0,60780.0,0.0009152]
[1723307946466,0.560812,60781.0,60780.0,0.0009152]
[1723307946644,0.639572,60772.0,60771.0,0.0009152]
[1723307946898,1.03821184,60772.0,60771.0,0.0009152]
[1723307947071,1.04290102,60772.0,60771.0,0.0009152]
[1723307947332,1.98293523,60772.0,60771.0,0.0009152]
[1723307947547,0.628267,60758.0,60757.0,0.0009152]
[1723307947747,0.75756834,60758.0,60757.0,0.0009152]
[1723307947897,0.51893486,60758.0,60757.0,0.0009152]
[1723307948061,0.35434786,60758.0,60757.0,0.0009152]
[1723307948266,0.03395486,60758.0,60757.0,0.0009152]
[1723307948469,0.11624786,60758.0,60757.0,0.0009152]
[1723307948725,0.11624786,60758.0,60757.0,0.0109152]
[1723307948726,0.03395486,60758.0,60757.0,0.0109152]
[1723307949300,0.00465352,60758.0,60757.0,0.0109152]
[1723307949732,0.082291,60760.0,60758.0,0.01]
[1723307949885,0.082291,60760.0,60758.0,0.02]
[1723307949886,0.02912264,60759.0,60758.0,0.02]
[1723307950304,0.082288,60762.0,60757.0,0.0832092]
[1723307950507,0.11142659,60761.0,60758.0,0.02]
[1723307950701,0.02913759,60760.0,60758.0,0.02]
[1723307950917,0.02913759,60760.0,60758.0,0.00404333]
[1723307951129,0.082288,60762.0,60758.0,0.00404333]
[1723307951130,0.164573,60763.0,60758.0,0.02604333]
[1723307951331,0.1,60762.0,60758.0,0.08833533]
[1723307951678,0.182288,60762.0,60758.0,0.02404333]
[1723307951900,0.082289,60761.0,60758.0,0.00404333]
[1723307952133,0.082289,60761.0,60758.0,0.02404333]
[1723307952311,0.1,60762.0,60758.0,0.10633633]
[1723307952523,0.085288,60762.0,60758.0,0.00404333]
[1723307952665,0.08229,60761.0,60758.0,0.02404333]
[1723307952884,0.1,60764.0,60759.0,0.02]
[1723307953262,0.08229,60760.0,60759.0,0.01]
[1723307953467,0.002,60761.0,60758.0,0.00404333]
[1723307953468,0.082292,60759.0,60758.0,0.00404333]
[1723307953981,0.082292,60759.0,60758.0,0.01]
[1723307954612,0.082292,60759.0,60758.0,0.011]
[1723307955184,0.324176,60759.0,60758.0,0.001]
[1723307956400,0.390176,60759.0,60758.0,0.001]
[1723307957706,0.39485092,60759.0,60758.0,0.001]
[1723307959518,0.55943492,60759.0,60758.0,0.001]
[1723307960911,0.55943492,60759.0,60757.0,0.0009152]
[1723307960912,0.24688,60758.0,60757.0,0.0009152]
[1723307961313,0.25155229,60758.0,60757.0,0.0009152]
[1723307962141,0.25155229,60758.0,60757.0,0.0019152]
[1723307963501,0.25155229,60758.0,60757.0,0.0029152]
[1723307964136,0.25155229,60758.0,60757.0,0.0129152]
[1723307964137,0.00467229,60758.0,60757.0,0.0129152]
[1723307964536,0.082293,60759.0,60758.0,0.01]
[1723307965258,0.082293,60759.0,60757.0,0.0039152]
[1723307965259,0.307874,60763.0,60760.0,0.01]
[1723307965467,0.1,60762.0,60761.0,0.01]
[1723307965617,0.1,60764.0,60762.0,0.01]
[1723307965822,0.082286,60763.0,60762.0,0.01]
[1723307966363,0.082289,60762.0,60760.0,0.01404323]
[1723307966568,0.082289,60762.0,60761.0,0.01]
[1723307966801,0.10993363,60765.0,60760.0,0.00404323]
[1723307966802,0.082289,60761.0,60760.0,0.00404323]
[1723307967233,0.326768,60761.0,60760.0,0.00404323]
[1723307967437,0.390168,60761.0,60760.0,0.00404323]
[1723307968955,0.225589,60761.0,60760.0,0.00404323]
[1723307969383,0.25479666,60761.0,60760.0,0.00404323]
[1723307969799,0.41937566,60761.0,60760.0,0.00404323]
[1723307970006,0.390168,60761.0,60760.0,0.00404323]
[1723307970215,0.41936546,60761.0,60760.0,0.00404323]
[1723307970858,0.58394446,60761.0,60760.0,0.00404323]
[1723307971795,0.02919746,60761.0,60760.0,0.01404323]
[1723307972095,0.17450263,60765.0,60760.0,0.01404323]
[1723307972096,0.1,60763.0,60762.0,0.01]
[1723307972339,0.11147492,60763.0,60762.0,0.01]
[1723307972566,0.182286,60763.0,60762.0,0.01]
[1723307972823,0.0046654,60763.0,60762.0,0.02]
[1723307973053,0.0046654,60763.0,60762.0,0.0987]
[1723307973281,0.227964,60767.0,60764.0,0.01]
[1723307973282,0.082284,60765.0,60764.0,0.01]
[1723307973515,0.111402,60765.0,60764.0,0.01]
[1723307973750,0.02911787,60765.0,60764.0,0.01]
[1723307973987,0.02911787,60765.0,60764.0,0.02]
[1723307974413,0.02911787,60765.0,60764.0,0.021]
[1723307974585,0.1,60767.0,60766.0,0.02]
[1723307974789,0.12912582,60767.0,60765.0,0.02]
[1723307974991,0.02912582,60766.0,60764.0,0.002]
[1723307975193,0.02912582,60766.0,60765.0,0.02]
[1723307975577,0.02912582,60766.0,60765.0,0.143884]
[1723307975815,0.02912582,60766.0,60765.0,0.163884]
[1723307976020,0.02906276,60767.0,60766.0,0.082282]
[1723307976217,0.1,60769.0,60765.0,0.0816]
[1723307976218,0.1,60769.0,60768.0,0.02]
[1723307976417,0.12907527,60769.0,60768.0,0.02]
[1723307976863,0.21135284,60769.0,60768.0,0.02]
[1723307977007,0.21065284,60769.0,60767.0,0.02]
[1723307977227,0.21065284,60769.0,60765.0,0.143883]
[1723307977228,0.02907484,60768.0,60765.0,0.02]
[1723307977623,0.11135484,60768.0,60766.0,0.02]
[1723307977953,0.02907484,60767.0,60765.0,0.02]
[1723307979232,0.12907484,60767.0,60765.0,0.02]
[1723307979446,0.02907484,60766.0,60765.0,0.02]
[1723307980041,0.02907484,60766.0,60765.0,0.021]
[1723307980262,0.02907484,60766.0,60765.0,0.022]
[1723307980595,0.02907484,60766.0,60765.0,0.02404323]
[1723307980715,0.02907484,60766.0,60765.0,0.02804323]
[1723307980919,0.09247484,60766.0,60765.0,0.02804323]
[1723307981562,0.33932184,60766.0,60765.0,0.01804323]
[1723307981986,0.33932184,60766.0,60765.0,0.00804323]
[1723307982177,0.33932184,60766.0,60765.0,0.014]
[1723307982380,0.33932184,60766.0,60765.0,0.004]
[1723307982828,0.33932184,60766.0,60762.0,0.0009152]
[1723307982829,0.164568,60765.0,60762.0,0.0009152]
[1723307983029,0.082286,60763.0,60762.0,0.0009152]
[1723307983232,0.11136084,60763.0,60762.0,0.0009152]
[1723307983480,0.11136084,60763.0,60762.0,0.0209152]
[1723307983617,0.11136084,60763.0,60762.0,0.0109152]
[1723307983817,0.35401936,60763.0,60762.0,0.0009152]
[1723307984020,0.35401936,60763.0,60762.0,0.0109152]
[1723307984229,0.35401936,60763.0,60762.0,0.0119152]
[1723307984429,0.35401936,60763.0,60762.0,0.0129152]
[1723307985874,0.35401936,60763.0,60762.0,0.0109152]
[1723307985875,0.18944636,60763.0,60762.0,0.0109152]
[1723307986065,0.18944636,60763.0,60762.0,0.0169152]
[1723307986504,0.35401936,60763.0,60762.0,0.0069152]
[1723307986967,0.41741936,60763.0,60762.0,0.0069152]
[1723307987397,0.41741936,60763.0,60762.0,0.0009152]
[1723307987826,0.42208145,60763.0,60762.0,0.0029152]
[1723307988831,0.58665445,60763.0,60762.0,0.0029152]
[1723307989006,0.86122745,60763.0,60762.0,0.0019152]
[1723307989157,0.90852563,60763.0,60762.0,0.0009152]
[1723307989371,0.90852563,60763.0,60762.0,0.0029152]
[1723307989573,0.91824513,60763.0,60762.0,0.0019152]
[1723307989885,0.91824513,60763.0,60762.0,0.0009152]
[1723307990102,0.91924513,60763.0,60762.0,0.0019152]
[1723307990469,0.91909002,60763.0,60762.0,0.0019152]
[1723307990650,0.91909002,60763.0,60762.0,0.0009152]
[1723307990874,0.92009002,60763.0,60762.0,0.0009152]
[1723307991079,0.91009002,60763.0,60762.0,0.0009152]
[1723307991508,0.92009002,60763.0,60762.0,0.0009152]
[1723307991708,0.92016351,60763.0,60762.0,0.0009152]
[1723307992255,0.91916351,60763.0,60762.0,0.0009152]
[1723307992599,0.91816351,60763.0,60762.0,0.0019152]
[1723307992802,0.91816351,60763.0,60762.0,0.0009152]
[1723307993054,0.91916351,60763.0,60762.0,0.0009152]
[1723307993771,0.94495441,60763.0,60762.0,0.0019152]